fUST/lending_fUST_20240124
["ID","MTS","AMOUNT","RATE_DAILY","PERIOD"]
[312589794,1706037048138,-2081.045582,0.00041369,7]
[312589795,1706037048147,-2081.045582,0.00041369,7]
[312589796,1706037048157,-2081.045582,0.00041369,7]
[312589797,1706037048166,-2081.045582,0.00041369,7]
[312589798,1706037048175,-2081.045582,0.00041369,7]
[312589799,1706037048185,-158.53703691,0.00041388,30]
[312589800,1706037048194,-153.17242078,0.0004145,30]
[312589801,1706037048203,-151.0,0.00041522,7]
[312589802,1706037048212,-777.0,0.00041522,4]
[312589803,1706037048222,-188.0,0.00041543,14]
[312589804,1706037048234,-150.40004763,0.00041543,14]
[312589805,1706037048243,-150.40004763,0.00041543,14]
[312589806,1706037048252,-150.40004763,0.00041543,14]
[312589807,1706037048268,-150.40004763,0.00041543,14]
[312589808,1706037048277,-153.17242078,0.0004164,30]
[312589809,1706037048286,-503.36597709,0.00041643,31]
[312589810,1706037048295,-500.0,0.00041643,31]
[312589811,1706037048304,-500.0,0.00041643,31]
[312589812,1706037048314,-500.0,0.00041643,31]
[312589813,1706037048323,-500.0,0.00041643,31]
[312589814,1706037048332,-500.0,0.00041643,31]
[312589815,1706037048341,-415.22868142,0.00041643,31]
[312589816,1706037048350,-500.0,0.00041643,31]
[312589817,1706037048359,-500.0,0.00041643,31]
[312589818,1706037048368,-1737.38,0.00041643,2]
[312589819,1706037048377,-573.84,0.00041643,31]
[312589820,1706037048386,-500.0,0.00041643,31]
[312589821,1706037048395,-500.0,0.00041643,31]
[312589822,1706037048405,-500.0,0.00041643,31]
[312589823,1706037048414,-500.0,0.00041643,31]
[312589824,1706037048423,-500.0,0.00041643,31]
[312589825,1706037048432,-309.83729002,0.00041643,31]
[312589826,1706037048441,-500.0,0.00041643,31]
[312589827,1706037048451,-500.0,0.00041643,7]
[312589828,1706037048460,-500.0,0.00041643,31]
[312589829,1706037048470,-500.0,0.00041643,31]
[312589830,1706037048479,-150.0,0.00041643,31]
[312589831,1706037048488,-554.14,0.00041643,31]
[312589832,1706037048497,-165.33223906,0.00041643,31]
[312589833,1706037048507,-500.0,0.00041643,31]
[312589834,1706037048516,-500.0,0.00041643,31]
[312589835,1706037048525,-500.0,0.00041643,31]
[312589836,1706037048534,-500.0,0.00041643,31]
[312589837,1706037048543,-975.59,0.00041643,31]
[312589838,1706037048553,-500.0,0.00041643,31]
[312589839,1706037048562,-500.0,0.00041643,31]
[312589840,1706037048571,-500.0,0.00041643,31]
[312589841,1706037048580,-500.0,0.00041643,31]
[312589842,1706037048589,-500.0,0.00041643,31]
[312589843,1706037048599,-836.28,0.00041643,31]
[312589844,1706037048683,-500.0,0.00041643,31]
[312589845,1706037048694,-500.0,0.00041643,31]
[312589846,1706037048705,-500.0,0.00041643,31]
[312589847,1706037048714,-500.0,0.00041643,31]
[312589848,1706037048725,-500.0,0.00041643,31]
[312589849,1706037048735,-500.0,0.00041643,31]
[312589850,1706037048744,-500.0,0.00041643,31]
[312589851,1706037048754,-466.33427644,0.00041643,31]
[312589852,1706037048763,-500.0,0.00041643,31]
[312589853,1706037048772,-536.62245918,0.00041643,31]
[312589854,1706037048781,-500.0,0.00041643,31]
[312589855,1706037048790,-500.0,0.00041643,7]
[312589856,1706037048799,-500.0,0.00041643,31]
[312589857,1706037048809,-500.0,0.00041643,31]
[312589858,1706037048820,-500.0,0.00041643,31]
[312589859,1706037048829,-500.0,0.00041643,31]
[312589860,1706037048838,-500.0,0.00041643,31]
[312589861,1706037048847,-500.0,0.00041643,31]
[312589862,1706037048856,-500.0,0.00041643,31]
[312589863,1706037048865,-500.0,0.00041643,31]
[312589864,1706037048874,-503.43961795,0.00041643,31]
[312589865,1706037048883,-500.0,0.00041643,31]
[312589866,1706037048893,-503.33976141,0.00041643,31]
[312589867,1706037048903,-500.0,0.00041643,31]
[312589868,1706037048912,-1526.53,0.00041643,31]
[312589869,1706037048924,-587.59,0.00041643,31]
[312589870,1706037048933,-500.0,0.00041643,31]
[312589871,1706037048942,-542.7351685,0.00041643,31]
[312589872,1706037048952,-500.0,0.00041643,31]
[312589873,1706037048961,-500.0,0.00041643,31]
[312589874,1706037048970,-500.0,0.00041643,31]
[312589875,1706037048980,-500.0,0.00041643,31]
[312589876,1706037048989,-568.41,0.00041643,31]
[312589877,1706037048999,-500.0,0.00041643,31]
[312589878,1706037049010,-803.44,0.00041643,31]
[312589879,1706037049019,-500.0,0.00041643,31]
[312589880,1706037049028,-500.0,0.00041643,31]
[312589881,1706037049038,-928.4,0.00041643,31]
[312589882,1706037049047,-500.0,0.00041643,31]
[312589883,1706037049057,-1000.0,0.00041643,2]
[312589884,1706037049067,-500.0,0.00041643,31]
[312589885,1706037049076,-583.54,0.00041643,31]
[312589886,1706037049086,-769.96,0.00041643,31]
[312589887,1706037049095,-500.0,0.00041643,31]
[312589888,1706037049104,-500.0,0.00041643,31]
[312589889,1706037049113,-664.95,0.00041643,31]
[312589890,1706037049121,-500.0,0.00041643,31]
[312589891,1706037049130,-500.0,0.00041643,31]
[312589892,1706037049140,-500.0,0.00041643,31]
[312589893,1706037049149,-500.0,0.00041643,31]
[312589894,1706037049159,-1240.8,0.00041643,31]
[312589895,1706037049169,-500.0,0.00041643,31]
[312589896,1706037049178,-500.0,0.00041643,31]
[312589897,1706037049188,-566.47962975,0.00041643,31]
[312589898,1706037049197,-500.0,0.00041643,31]
[312589899,1706037049206,-500.0,0.00041643,31]
[312589900,1706037049216,-662.56,0.00041643,31]
[312589901,1706037049225,-500.0,0.00041643,31]
[312589902,1706037049234,-500.0,0.00041643,31]
[312589903,1706037049244,-810.35,0.00041643,31]
[312589904,1706037049253,-500.0,0.00041643,31]
[312589905,1706037049262,-464.20167144,0.00041643,31]
[312589906,1706037049272,-936.19,0.00041643,31]
[312589907,1706037049281,-500.0,0.00041643,31]
[312589908,1706037049291,-644.94,0.00041643,31]
[312589909,1706037049301,-500.0,0.00041643,31]
[312589910,1706037049311,-1012.08,0.00041643,31]
[312589911,1706037049320,-500.0,0.00041643,31]
[312589912,1706037049329,-500.0,0.00041643,31]
[312589913,1706037049340,-500.0,0.00041643,31]
[312589914,1706037049350,-500.0,0.00041643,31]
[312589915,1706037049359,-500.0,0.00041643,31]
[312589916,1706037049368,-500.0,0.00041643,31]
[312589917,1706037049377,-500.0,0.00041643,31]
[312589918,1706037049386,-2006.77,0.00041643,31]
[312589919,1706037049395,-753.82,0.00041643,31]
[312589920,1706037049403,-500.0,0.00041643,31]
[312589921,1706037049412,-836.86,0.00041643,31]
[312589922,1706037049421,-500.0,0.00041643,31]
[312589923,1706037049429,-500.0,0.00041643,31]
[312589924,1706037049438,-500.0,0.00041643,31]
[312589925,1706037049448,-500.0,0.00041643,31]
[312589926,1706037049457,-500.0,0.00041643,31]
[312589927,1706037049466,-500.0,0.00041643,31]
[312589928,1706037049476,-500.0,0.00041643,31]
[312589929,1706037049488,-500.0,0.00041643,31]
[312589930,1706037049498,-500.0,0.00041643,31]
[312589931,1706037049507,-500.0,0.00041643,31]
[312589932,1706037049516,-500.0,0.00041643,31]
[312589933,1706037049525,-3125.81,0.00041643,31]
[312589934,1706037049534,-500.0,0.00041643,7]
[312589935,1706037049544,-500.0,0.00041643,31]
[312589936,1706037049552,-514.23179972,0.00041643,31]
[312589937,1706037049561,-1046.12,0.00041643,31]
[312589938,1706037049570,-500.0,0.00041643,31]
[312589939,1706037049579,-1533.55,0.00041643,31]
[312589940,1706037049588,-500.0,0.00041643,31]
[312589941,1706037049597,-180.19374953,0.00041643,2]
[312589942,1706037049605,-500.0,0.00041643,31]
[312589943,1706037049614,-500.0,0.00041643,31]
[312589944,1706037049623,-500.0,0.00041643,31]
[312589945,1706037049632,-556.14,0.00041643,31]
[312589946,1706037049641,-500.0,0.00041643,31]
[312589947,1706037049650,-2142.23,0.00041643,31]
[312589948,1706037049658,-200.0,0.00041643,31]
[312589949,1706037049668,-1492.04,0.00041643,31]
[312589950,1706037049676,-150.0,0.00041643,14]
[312589951,1706037049686,-1000.0,0.00041643,2]
[312589952,1706037049694,-500.0,0.00041643,7]
[312589953,1706037049704,-557.88,0.00041643,31]
[312589954,1706037049713,-500.0,0.00041643,31]
[312589955,1706037049722,-517.63130353,0.00041643,31]
[312589956,1706037049731,-500.0,0.00041643,2]
[312589957,1706037049740,-570.77,0.00041643,31]
[312589958,1706037049749,-500.0,0.00041643,31]
[312589959,1706037049759,-830.51,0.00041643,31]
[312589960,1706037049768,-1071.98,0.00041643,31]
[312589961,1706037049777,-617.33,0.00041643,31]
[312589962,1706037049786,-500.0,0.00041643,31]
[312589963,1706037049796,-500.0,0.00041643,31]
[312589964,1706037049805,-500.0,0.00041643,31]
[312589965,1706037049815,-2589.44,0.00041643,31]
[312589966,1706037049824,-241.36365196,0.00041643,31]
[312589967,1706037049834,-1336.98,0.00041643,31]
[312589968,1706037049843,-689.22,0.00041643,31]
[312589969,1706037049854,-500.0,0.00041643,31]
[312589970,1706037049865,-1436.14,0.00041643,31]
[312589971,1706037049875,-500.0,0.00041643,31]
[312589972,1706037049883,-181.75430015,0.00041643,31]
[312589973,1706037049891,-1212.95,0.00041643,31]
[312589974,1706037049901,-500.0,0.00041643,31]
[312589975,1706037049910,-952.27,0.00041643,31]
[312589976,1706037049921,-500.0,0.00041643,31]
[312589977,1706037049931,-500.0,0.00041643,31]
[312589978,1706037049939,-500.0,0.00041643,31]
[312589979,1706037049949,-500.0,0.00041643,31]
[312589980,1706037049958,-524.23,0.00041643,31]
[312589981,1706037049967,-500.0,0.00041643,31]
[312589982,1706037049975,-500.0,0.00041643,31]
[312589983,1706037049984,-500.0,0.00041643,31]
[312589984,1706037049995,-500.0,0.00041643,31]
[312589985,1706037050005,-500.0,0.00041643,31]
[312589986,1706037050014,-500.0,0.00041643,31]
[312589987,1706037050024,-500.0,0.00041643,31]
[312589988,1706037050033,-4888.61,0.00041643,31]
[312589989,1706037050042,-527.88,0.00041643,20]
[312589990,1706037050051,-631.23,0.00041643,31]
[312589991,1706037050061,-500.0,0.00041643,31]
[312589992,1706037050071,-1233.83,0.00041643,31]
[312589993,1706037050080,-756.58,0.00041643,31]
[312589994,1706037050089,-527.64405888,0.00041643,31]
[312589995,1706037050098,-500.0,0.00041643,2]
[312589996,1706037050108,-875.32,0.00041643,31]
[312589997,1706037050118,-500.0,0.00041643,31]
[312589998,1706037050127,-516.46,0.00041643,31]
[312589999,1706037050136,-842.54,0.00041643,31]
[312590000,1706037050145,-500.0,0.00041643,31]
[312590001,1706037050154,-500.0,0.00041643,31]
[312590002,1706037050163,-500.0,0.00041643,31]
[312590003,1706037050177,-500.0,0.00041643,31]
[312590004,1706037050187,-1325.01,0.00041643,31]
[312590005,1706037050196,-500.0,0.00041643,31]
[312590006,1706037050205,-500.0,0.00041643,31]
[312590007,1706037050215,-500.0,0.00041643,31]
[312590008,1706037050224,-500.0,0.00041643,31]
[312590009,1706037050234,-151.57120095,0.00041643,31]
[312590010,1706037050242,-500.0,0.00041643,31]
[312590011,1706037050252,-773.57,0.00041643,31]
[312590012,1706037050261,-190.88529876,0.00041643,31]
[312590013,1706037050270,-1000.0,0.00041643,2]
[312590014,1706037050357,-206.73369345,0.00041643,31]
[312590015,1706037050367,-500.0,0.00041643,31]
[312590016,1706037050380,-500.0,0.00041643,31]
[312590017,1706037050389,-500.0,0.00041643,31]
[312590018,1706037050399,-500.0,0.00041643,31]
[312590019,1706037050408,-501.39264121,0.00041643,31]
[312590020,1706037050417,-1388.64,0.00041643,31]
[312590021,1706037050426,-500.0,0.00041643,31]
[312590022,1706037050436,-500.0,0.00041643,31]
[312590023,1706037050445,-505.72363069,0.00041643,31]
[312590024,1706037050454,-500.0,0.00041643,31]
[312590025,1706037050464,-10493.74,0.00041643,31]
[312590026,1706037050474,-667.51,0.00041643,31]
[312590027,1706037050483,-500.0,0.00041643,31]
[312590028,1706037050492,-4157.77,0.00041643,31]
[312590029,1706037050501,-500.0,0.00041643,31]
[312590030,1706037050510,-668.52,0.00041643,31]
[312590031,1706037050519,-537.99520594,0.00041643,31]
[312590032,1706037050529,-500.0,0.00041643,31]
[312590033,1706037050539,-500.0,0.00041643,31]
[312590034,1706037050549,-877.04,0.00041643,31]
[312590035,1706037050558,-517.30729681,0.00041643,31]
[312590036,1706037050568,-500.0,0.00041643,31]
[312590037,1706037050577,-1630.12,0.00041643,31]
[312590038,1706037050586,-500.0,0.00041643,31]
[312590039,1706037050595,-517.9,0.00041643,31]
[312590040,1706037050605,-502.63,0.00041643,31]
[312590041,1706037050614,-601.41,0.00041643,31]
[312590042,1706037050623,-26611.84,0.00041643,14]
[312590043,1706037050632,-500.0,0.00041643,31]
[312590044,1706037050641,-500.0,0.00041643,31]
[312590045,1706037050650,-507.0645809,0.00041643,31]
[312590046,1706037050660,-503.7252797,0.00041643,31]
[312590047,1706037050669,-500.0,0.00041643,31]
[312590048,1706037050679,-788.54,0.00041643,31]
[312590049,1706037050689,-500.0,0.00041643,31]
[312590050,1706037050698,-2016.28,0.00041643,31]
[312590051,1706037050707,-500.0,0.00041643,31]
[312590052,1706037050716,-500.0,0.00041643,31]
[312590053,1706037050725,-2694.73,0.00041643,31]
[312590054,1706037050734,-500.0,0.00041643,31]
[312590055,1706037050743,-2336.18,0.00041643,31]
[312590056,1706037050752,-680.46,0.00041643,31]
[312590057,1706037050761,-1160.15,0.00041643,31]
[312590058,1706037050770,-752.75,0.00041643,31]
[312590059,1706037050779,-500.0,0.00041643,31]
[312590060,1706037050788,-3662.83,0.00041643,31]
[312590061,1706037050797,-500.0,0.00041643,31]
[312590062,1706037050806,-500.0,0.00041643,31]
[312590063,1706037050815,-1342.57,0.00041643,31]
[312590064,1706037050824,-505.49227665,0.00041643,31]
[312590065,1706037050833,-500.0,0.00041643,31]
[312590066,1706037050842,-500.0,0.00041643,31]
[312590067,1706037050851,-500.0,0.00041643,31]
[312590068,1706037050861,-500.0,0.00041643,31]
[312590069,1706037050869,-500.0,0.00041643,31]
[312590070,1706037050878,-500.0,0.00041643,31]
[312590071,1706037050888,-712.42,0.00041643,31]
[312590072,1706037050898,-500.0,0.00041643,31]
[312590073,1706037050908,-500.0,0.00041643,31]
[312590074,1706037050917,-500.0,0.00041643,31]
[312590075,1706037050927,-500.0,0.00041643,31]
[312590076,1706037050936,-500.0,0.00041643,31]
[312590077,1706037050947,-500.0,0.00041643,31]
[312590078,1706037050956,-500.0,0.00041643,31]
[312590079,1706037050966,-1601.77,0.00041643,31]
[312590080,1706037050976,-151.0,0.00041643,7]
[312590081,1706037050986,-151.0,0.00041643,7]
[312590082,1706037050996,-151.0,0.00041643,7]
[312590083,1706037051005,-151.0,0.00041643,7]
[312590084,1706037051014,-151.0,0.00041643,7]
[312590085,1706037051023,-151.0,0.00041643,7]
[312590086,1706037051033,-151.0,0.00041643,7]
[312590087,1706037051043,-151.0,0.00041643,7]
[312590088,1706037051052,-151.0,0.00041643,7]
[312590089,1706037051061,-151.0,0.00041643,7]
[312590090,1706037051072,-151.0,0.00041643,7]
[312590091,1706037051082,-151.0,0.00041643,7]
[312590092,1706037051091,-151.0,0.00041643,7]
[312590093,1706037051101,-151.0,0.00041643,7]
[312590094,1706037051110,-151.0,0.00041643,7]
[312590095,1706037051119,-151.0,0.00041643,7]
[312590096,1706037051128,-259.041922,0.00041643,7]
[312590097,1706037051137,-151.0,0.00041643,7]
[312590098,1706037051146,-158.257111,0.00041643,7]
[312590099,1706037051155,-158.257111,0.00041643,7]
[312590100,1706037051164,-158.257111,0.00041643,7]
[312590101,1706037051174,-158.25710102,0.00041643,7]
[312590102,1706037051183,-2081.045582,0.00041643,7]
[312590103,1706037051192,-2081.045582,0.00041643,7]
[312590104,1706037051202,-2081.045582,0.00041643,7]
[312590105,1706037051211,-2081.045582,0.00041643,7]
[312590106,1706037051221,-153.17242078,0.00041669,30]
[312590107,1706037051231,-153.17242078,0.00041697,30]
[312590108,1706037051240,-166.9291756,0.0004175,30]
[312590109,1706037051249,-158.53703691,0.0004186,30]
[312590110,1706037051258,-151.0,0.00041917,7]
[312590111,1706037051267,-151.0,0.00041917,7]
[312590112,1706037051277,-151.0,0.00041917,7]
[312590113,1706037051286,-151.0,0.00041917,7]
[312590114,1706037051295,-151.0,0.00041917,7]
[312590115,1706037051304,-208.028606,0.00041917,7]
[312590116,1706037051315,-151.0,0.00041917,7]
[312590117,1706037051324,-151.0,0.00041917,7]
[312590118,1706037051334,-500.0,0.00041917,31]
[312590119,1706037051343,-500.0,0.00041917,31]
[312590120,1706037051352,-500.0,0.00041917,31]
[312590121,1706037051361,-500.0,0.00041917,31]
[312590122,1706037051370,-60.65368585,0.00041917,31]
[312590123,1706037051650,-1105.34026241,0.00041085,3]
[312590124,1706037052247,-823.17973759,0.00041085,3]
[312590125,1706037052256,-439.34631415,0.00041917,31]
[312590126,1706037052266,-500.0,0.00041917,31]
[312590127,1706037052275,-500.0,0.00041917,31]
[312590128,1706037052284,-1737.38,0.00041917,2]
[312590129,1706037052293,-500.0,0.00041917,31]
[312590130,1706037052302,-500.0,0.00041917,31]
[312590131,1706037052311,-500.0,0.00041917,31]
[312590132,1706037052321,-500.0,0.00041917,31]
[312590133,1706037052330,-500.0,0.00041917,31]
[312590134,1706037052339,-500.0,0.00041917,7]
[312590135,1706037052349,-221.65069764,0.00041917,31]
[312590136,1706037052358,-500.0,0.00041917,31]
[312590137,1706037052367,-150.0,0.00041917,31]
[312590138,1706037052376,-554.14,0.00041917,31]
[312590139,1706037052386,-500.0,0.00041917,31]
[312590140,1706037052395,-500.0,0.00041917,31]
[312590141,1706037052404,-500.0,0.00041917,31]
[312590142,1706037052414,-500.0,0.00041917,31]
[312590143,1706037052423,-975.59,0.00041917,31]
[312590144,1706037052432,-500.0,0.00041917,31]
[312590145,1706037052441,-500.0,0.00041917,31]
[312590146,1706037052450,-500.0,0.00041917,31]
[312590147,1706037052460,-500.0,0.00041917,31]
[312590148,1706037052469,-500.0,0.00041917,31]
[312590149,1706037052478,-836.28,0.00041917,31]
[312590150,1706037052486,-500.0,0.00041917,31]
[312590151,1706037052495,-500.0,0.00041917,31]
[312590152,1706037052505,-505.75564807,0.00041917,31]
[312590153,1706037052513,-500.0,0.00041917,31]
[312590154,1706037052523,-500.0,0.00041917,31]
[312590155,1706037052532,-500.0,0.00041917,31]
[312590156,1706037052541,-500.0,0.00041917,31]
[312590157,1706037052551,-547.28004678,0.00041917,31]
[312590158,1706037052560,-500.0,0.00041917,31]
[312590159,1706037052570,-500.0,0.00041917,7]
[312590160,1706037052580,-500.0,0.00041917,31]
[312590161,1706037052590,-500.0,0.00041917,31]
[312590162,1706037052599,-500.0,0.00041917,31]
[312590163,1706037052608,-299.10580039,0.00041917,31]
[312590164,1706037052618,-500.0,0.00041917,31]
[312590165,1706037052626,-500.0,0.00041917,31]
[312590166,1706037052636,-500.0,0.00041917,31]
[312590167,1706037052644,-500.0,0.00041917,31]
[312590168,1706037052654,-500.0,0.00041917,31]
[312590169,1706037052663,-500.0,0.00041917,31]
[312590170,1706037052672,-1526.53,0.00041917,31]
[312590171,1706037052681,-587.59,0.00041917,31]
[312590172,1706037052690,-500.0,0.00041917,31]
[312590173,1706037052699,-500.0,0.00041917,31]
[312590174,1706037052708,-500.0,0.00041917,31]
[312590175,1706037052717,-500.0,0.00041917,31]
[312590176,1706037052726,-500.0,0.00041917,31]
[312590177,1706037052735,-568.41,0.00041917,31]
[312590178,1706037052744,-500.0,0.00041917,31]
[312590179,1706037052753,-803.44,0.00041917,31]
[312590180,1706037052763,-500.0,0.00041917,31]
[312590181,1706037052772,-380.46023902,0.00041917,31]
[312590182,1706037052781,-928.4,0.00041917,31]
[312590183,1706037052790,-500.0,0.00041917,31]
[312590184,1706037052799,-1000.0,0.00041917,2]
[312590185,1706037052808,-500.0,0.00041917,31]
[312590186,1706037052817,-583.54,0.00041917,31]
[312590187,1706037052826,-769.96,0.00041917,31]
[312590188,1706037052835,-500.0,0.00041917,31]
[312590189,1706037052844,-500.0,0.00041917,31]
[312590190,1706037052853,-664.95,0.00041917,31]
[312590191,1706037052862,-500.0,0.00041917,31]
[312590192,1706037052871,-198.21876223,0.00041917,31]
[312590193,1706037052880,-269.96456113,0.00041917,31]
[312590194,1706037052888,-500.0,0.00041917,31]
[312590195,1706037052899,-1240.8,0.00041917,31]
[312590196,1706037052908,-500.0,0.00041917,31]
[312590197,1706037052919,-500.0,0.00041917,31]
[312590198,1706037052928,-500.0,0.00041917,31]
[312590199,1706037052937,-500.0,0.00041917,31]
[312590200,1706037052947,-662.56,0.00041917,31]
[312590201,1706037052956,-500.0,0.00041917,31]
[312590202,1706037052965,-500.0,0.00041917,31]
[312590203,1706037052975,-810.35,0.00041917,31]
[312590204,1706037052984,-457.75435152,0.00041917,31]
[312590205,1706037052993,-936.19,0.00041917,31]
[312590206,1706037053002,-500.0,0.00041917,31]
[312590207,1706037053012,-644.94,0.00041917,31]
[312590208,1706037053021,-500.0,0.00041917,31]
[312590209,1706037053031,-1012.08,0.00041917,31]
[312590210,1706037053040,-500.0,0.00041917,31]
[312590211,1706037053049,-500.0,0.00041917,31]
[312590212,1706037053059,-500.0,0.00041917,31]
[312590213,1706037053068,-500.0,0.00041917,31]
[312590214,1706037053077,-500.0,0.00041917,31]
[312590215,1706037053087,-500.0,0.00041917,31]
[312590216,1706037053096,-496.92122167,0.00041917,31]
[312590217,1706037053106,-2006.77,0.00041917,31]
[312590218,1706037053115,-753.82,0.00041917,31]
[312590219,1706037053125,-500.0,0.00041917,31]
[312590220,1706037053134,-836.86,0.00041917,31]
[312590221,1706037053143,-580.9911771,0.00041917,31]
[312590222,1706037053152,-500.0,0.00041917,31]
[312590223,1706037053162,-500.0,0.00041917,31]
[312590224,1706037053171,-556.3347181,0.00041917,31]
[312590225,1706037053181,-500.0,0.00041917,31]
[312590226,1706037053261,-500.0,0.00041917,31]
[312590227,1706037053271,-223.31083952,0.00041917,31]
[312590228,1706037053280,-500.0,0.00041917,31]
[312590229,1706037053291,-500.0,0.00041917,31]
[312590230,1706037053300,-500.0,0.00041917,31]
[312590231,1706037053309,-500.0,0.00041917,31]
[312590232,1706037053321,-3125.81,0.00041917,31]
[312590233,1706037053330,-500.0,0.00041917,7]
[312590234,1706037053341,-500.0,0.00041917,31]
[312590235,1706037053350,-1046.12,0.00041917,31]
[312590236,1706037053360,-500.0,0.00041917,31]
[312590237,1706037053369,-1533.55,0.00041917,31]
[312590238,1706037053378,-500.0,0.00041917,31]
[312590239,1706037053388,-500.0,0.00041917,31]
[312590240,1706037053398,-500.0,0.00041917,31]
[312590241,1706037053408,-500.0,0.00041917,31]
[312590242,1706037053417,-556.14,0.00041917,31]
[312590243,1706037053427,-500.0,0.00041917,31]
[312590244,1706037053438,-2142.23,0.00041917,31]
[312590245,1706037053448,-200.0,0.00041917,31]
[312590246,1706037053456,-1492.04,0.00041917,31]
[312590247,1706037053465,-150.0,0.00041917,14]
[312590248,1706037053474,-1000.0,0.00041917,2]
[312590249,1706037053483,-500.0,0.00041917,7]
[312590250,1706037053493,-557.88,0.00041917,31]
[312590251,1706037053501,-500.0,0.00041917,31]
[312590252,1706037053511,-500.0,0.00041917,2]
[312590253,1706037053520,-570.77,0.00041917,31]
[312590254,1706037053529,-500.0,0.00041917,31]
[312590255,1706037053539,-830.51,0.00041917,31]
[312590256,1706037053548,-1071.98,0.00041917,31]
[312590257,1706037053558,-500.0,0.00041917,31]
[312590258,1706037053571,-617.33,0.00041917,31]
[312590259,1706037053580,-500.0,0.00041917,31]
[312590260,1706037053590,-500.0,0.00041917,31]
[312590261,1706037053600,-2589.44,0.00041917,31]
[312590262,1706037053609,-1336.98,0.00041917,31]
[312590263,1706037053618,-689.22,0.00041917,31]
[312590264,1706037053627,-500.0,0.00041917,31]
[312590265,1706037053637,-1436.14,0.00041917,31]
[312590266,1706037053646,-500.0,0.00041917,31]
[312590267,1706037053655,-1212.95,0.00041917,31]
[312590268,1706037053664,-500.0,0.00041917,31]
[312590269,1706037053673,-952.27,0.00041917,31]
[312590270,1706037053683,-500.0,0.00041917,31]
[312590271,1706037053692,-500.0,0.00041917,31]
[312590272,1706037053702,-500.0,0.00041917,31]
[312590273,1706037053711,-500.0,0.00041917,31]
[312590274,1706037053720,-524.23,0.00041917,31]
[312590275,1706037053730,-500.0,0.00041917,31]
[312590276,1706037053739,-500.0,0.00041917,31]
[312590277,1706037053749,-500.0,0.00041917,31]
[312590278,1706037053758,-500.0,0.00041917,31]
[312590279,1706037053767,-500.0,0.00041917,31]
[312590280,1706037053776,-500.0,0.00041917,31]
[312590281,1706037053785,-500.0,0.00041917,31]
[312590282,1706037053794,-4888.61,0.00041917,31]
[312590283,1706037053803,-527.88,0.00041917,20]
[312590284,1706037053812,-631.23,0.00041917,31]
[312590285,1706037053824,-1233.83,0.00041917,31]
[312590286,1706037053832,-756.58,0.00041917,31]
[312590287,1706037053842,-500.0,0.00041917,31]
[312590288,1706037053851,-500.0,0.00041917,2]
[312590289,1706037053860,-875.32,0.00041917,31]
[312590290,1706037053869,-500.0,0.00041917,31]
[312590291,1706037053878,-516.46,0.00041917,31]
[312590292,1706037053888,-842.54,0.00041917,31]
[312590293,1706037053898,-500.0,0.00041917,31]